fUST/lending_fUST_20240721
["ID","MTS","AMOUNT","RATE_DAILY","PERIOD"]
[332797259,1721531442811,-500.0,0.00013698,2]
[332797261,1721531442822,-500.0,0.00013698,2]
[332797263,1721531442832,-500.0,0.00013698,2]
[332797265,1721531442842,-500.0,0.00013698,2]
[332797267,1721531442852,-500.0,0.00013698,2]
[332797269,1721531442861,-500.0,0.00013698,2]
[332797271,1721531442871,-500.0,0.00013698,2]
[332797273,1721531442880,-500.0,0.00013698,2]
[332797275,1721531442890,-500.0,0.00013698,2]
[332797277,1721531442899,-500.0,0.00013698,2]
[332797279,1721531442909,-500.0,0.00013698,2]
[332797281,1721531442922,-500.0,0.00013698,2]
[332797283,1721531442932,-500.0,0.00013698,2]
[332797285,1721531442941,-500.0,0.00013698,2]
[332797286,1721531442951,-150.0,0.00013698,2]
[332797288,1721531442961,-500.0,0.00013698,2]
[332797290,1721531442970,-500.0,0.00013698,2]
[332797292,1721531442980,-500.0,0.00013698,2]
[332797294,1721531442991,-500.0,0.00013698,2]
[332797297,1721531443001,-500.0,0.00013698,2]
[332797300,1721531443011,-500.0,0.00013698,2]
[332797303,1721531443021,-500.0,0.00013698,2]
[332797306,1721531443030,-715.2,0.00013698,2]
[332797309,1721531443041,-500.0,0.00013698,2]
[332797312,1721531443050,-518.51648831,0.00013698,2]
[332797314,1721531443059,-500.0,0.00013698,2]
[332797316,1721531443068,-500.0,0.00013698,2]
[332797318,1721531443078,-537.2978861,0.00013698,2]
[332797320,1721531443087,-513.01851565,0.00013698,2]
[332797322,1721531443096,-500.0,0.00013698,2]
[332797324,1721531443106,-500.0,0.00013698,2]
[332797326,1721531443118,-500.0,0.00013698,2]
[332797328,1721531443130,-500.0,0.00013698,2]
[332797330,1721531443140,-500.0,0.00013698,2]
[332797332,1721531443150,-277.30974389,0.00013698,2]
[332797334,1721531443160,-814.99,0.00013698,2]
[332797336,1721531443169,-500.0,0.00013698,2]
[332797339,1721531443179,-1012.95674876,0.00013698,2]
[332797342,1721531443189,-500.0,0.00013698,2]
[332797345,1721531443198,-1092.35,0.00013698,2]
[332797348,1721531443208,-1195.72,0.00013698,2]
[332797350,1721531443218,-500.0,0.00013698,2]
[332797353,1721531443228,-500.0,0.00013698,2]
[332797355,1721531443237,-500.0,0.00013698,2]
[332797356,1721531443246,-500.0,0.00013698,2]
[332797358,1721531443256,-500.0,0.00013698,2]
[332797360,1721531443265,-500.0,0.00013698,2]
[332797362,1721531443274,-500.0,0.00013698,2]
[332797364,1721531443283,-500.0,0.00013698,2]
[332797366,1721531443293,-520.0,0.00013698,2]
[332797368,1721531443302,-500.0,0.00013698,2]
[332797369,1721531443311,-500.0,0.00013698,2]
[332797371,1721531443320,-500.0,0.00013698,2]
[332797373,1721531443330,-543.78739897,0.00013698,2]
[332797375,1721531443339,-505.04722869,0.00013698,2]
[332797377,1721531443348,-500.0,0.00013698,2]
[332797379,1721531443358,-500.73146762,0.00013698,2]
[332797381,1721531443367,-502.47574919,0.00013698,2]
[332797382,1721531443376,-1693.08,0.00013698,2]
[332797384,1721531443385,-500.89337382,0.00013698,2]
[332797386,1721531443394,-502.2429734,0.00013698,2]
[332797388,1721531443403,-1489.25,0.00013698,2]
[332797390,1721531443412,-500.0,0.00013698,2]
[332797392,1721531443421,-500.0,0.00013698,2]
[332797394,1721531443431,-500.0,0.00013698,2]
[332797396,1721531443440,-500.0,0.00013698,2]
[332797398,1721531443449,-500.0,0.00013698,2]
[332797400,1721531443459,-1933.06,0.00013698,2]
[332797402,1721531443468,-503.5797547,0.00013698,2]
[332797404,1721531443477,-500.0,0.00013698,2]
[332797406,1721531443487,-574.0628403,0.00013698,2]
[332797408,1721531443496,-500.0,0.00013698,2]
[332797410,1721531443505,-500.0,0.00013698,2]
[332797412,1721531443514,-500.0,0.00013698,2]
[332797414,1721531443523,-500.0,0.00013698,2]
[332797416,1721531443533,-500.0,0.00013698,2]
[332797417,1721531443542,-500.0,0.00013698,2]
[332797419,1721531443551,-444.67133245,0.00013698,2]
[332797421,1721531443560,-500.0,0.00013698,2]
[332797423,1721531443569,-506.405325,0.00013698,2]
[332797425,1721531443579,-500.0,0.00013698,2]
[332797427,1721531443588,-500.0,0.00013698,2]
[332797429,1721531443597,-635.20312292,0.00013698,2]
[332797431,1721531443606,-500.68634203,0.00013698,2]
[332797433,1721531443615,-500.0,0.00013698,2]
[332797435,1721531443626,-1897.45,0.00013698,2]
[332797437,1721531443635,-500.97080716,0.00013698,2]
[332797439,1721531443644,-500.0,0.00013698,2]
[332797441,1721531443654,-551.1,0.00013698,2]
[332797443,1721531443663,-668.01,0.00013698,2]
[332797445,1721531443673,-500.0,0.00013698,2]
[332797447,1721531443682,-500.0,0.00013698,2]
[332797449,1721531443691,-500.0,0.00013698,2]
[332797451,1721531443700,-500.0,0.00013698,2]
[332797453,1721531443710,-500.0,0.00013698,2]
[332797455,1721531443719,-259.81166719,0.00013698,2]
[332797456,1721531443728,-500.0,0.00013698,2]
[332797457,1721531443737,-500.0,0.00013698,2]
[332797458,1721531443746,-500.0,0.00013698,2]
[332797459,1721531443755,-955.41,0.00013698,2]
[332797460,1721531443765,-500.0,0.00013698,2]
[332797461,1721531443774,-500.0,0.00013698,2]
[332797462,1721531443783,-500.0,0.00013698,2]
[332797463,1721531443792,-500.0,0.00013698,2]
[332797464,1721531443801,-500.0,0.00013698,2]
[332797465,1721531443810,-556.1923739,0.00013698,2]
[332797466,1721531443819,-709.72,0.00013698,2]
[332797467,1721531443828,-1809.04,0.00013698,2]
[332797468,1721531443837,-500.0,0.00013698,2]
[332797469,1721531443846,-1643.36,0.00013698,2]
[332797470,1721531443856,-500.0,0.00013698,2]
[332797471,1721531443866,-544.25,0.00013698,2]
[332797472,1721531443875,-505.39149835,0.00013698,2]
[332797473,1721531443884,-500.0,0.00013698,2]
[332797474,1721531443893,-500.0,0.00013698,2]
[332797475,1721531443902,-500.0,0.00013698,2]
[332797476,1721531443913,-500.0,0.00013698,2]
[332797477,1721531443922,-500.0,0.00013698,2]
[332797478,1721531443933,-500.0,0.00013698,2]
[332797480,1721531443942,-500.0,0.00013698,2]
[332797481,1721531443951,-500.0,0.00013698,2]
[332797482,1721531443963,-580.74,0.00013698,2]
[332797483,1721531443973,-500.0,0.00013698,2]
[332797485,1721531443984,-500.0,0.00013698,2]
[332797488,1721531443996,-166.46989288,0.00013698,2]
[332797490,1721531444006,-500.0,0.00013698,2]
[332797492,1721531444017,-500.0,0.00013698,2]
[332797494,1721531444027,-500.0,0.00013698,2]
[332797496,1721531444036,-1219.61,0.00013698,2]
[332797498,1721531444046,-437.67194213,0.00013698,2]
[332797500,1721531444055,-3609.17,0.00013698,2]
[332797502,1721531444065,-502.0283174,0.00013698,2]
[332797504,1721531444074,-300.0,0.00013698,2]
[332797506,1721531444083,-500.0,0.00013698,2]
[332797508,1721531444093,-500.0,0.00013698,2]
[332797510,1721531444102,-522.19846751,0.00013698,2]
[332797512,1721531444112,-502.87563975,0.00013698,2]
[332797514,1721531444121,-500.0,0.00013698,2]
[332797516,1721531444131,-500.0,0.00013698,2]
[332797518,1721531444140,-500.0,0.00013698,2]
[332797520,1721531444150,-2349.57,0.00013698,2]
[332797522,1721531444159,-500.0,0.00013698,2]
[332797524,1721531444169,-1746.75,0.00013698,2]
[332797526,1721531444178,-500.0,0.00013698,2]
[332797528,1721531444188,-504.64,0.00013698,2]
[332797530,1721531444197,-500.0,0.00013698,2]
[332797532,1721531444207,-5625.7,0.00013698,2]
[332797534,1721531444217,-1174.9,0.00013698,2]
[332797536,1721531444227,-500.0,0.00013698,2]
[332797538,1721531444236,-553.17107908,0.00013698,2]
[332797540,1721531444245,-500.0,0.00013698,2]
[332797542,1721531444254,-500.0,0.00013698,2]
[332797544,1721531444264,-500.0,0.00013698,2]
[332797546,1721531444273,-732.99,0.00013698,2]
[332797548,1721531444282,-837.58,0.00013698,2]
[332797550,1721531444291,-500.0,0.00013698,2]
[332797552,1721531444300,-500.0,0.00013698,2]
[332797553,1721531444309,-500.81339104,0.00013698,2]
[332797554,1721531444319,-500.0,0.00013698,2]
[332797555,1721531444328,-1300.9,0.00013698,2]
[332797556,1721531444338,-500.0,0.00013698,2]
[332797557,1721531444347,-2570.26,0.00013698,2]
[332797558,1721531444358,-500.0,0.00013698,2]
[332797559,1721531444367,-1097.27,0.00013698,2]
[332797560,1721531444376,-500.0,0.00013698,2]
[332797561,1721531444385,-271.74760283,0.00013698,2]
[332797562,1721531444394,-633.18,0.00013698,2]
[332797563,1721531444403,-948.19,0.00013698,2]
[332797564,1721531444413,-534.93,0.00013698,2]
[332797565,1721531444422,-1836.33,0.00013698,2]
[332797566,1721531444431,-500.0,0.00013698,2]
[332797567,1721531444440,-2282.34,0.00013698,2]
[332797568,1721531444449,-2258.16,0.00013698,2]
[332797569,1721531444461,-1173.25,0.00013698,2]
[332797570,1721531444471,-500.0,0.00013698,2]
[332797571,1721531444480,-601.89,0.00013698,2]
[332797572,1721531444490,-500.0,0.00013698,2]
[332797573,1721531444499,-344.22504912,0.00013698,2]
[332797574,1721531444510,-2021.04,0.00013698,2]
[332797575,1721531444519,-2022.82,0.00013698,2]
[332797576,1721531444528,-228.13644181,0.00013698,2]
[332797577,1721531444538,-1055.7,0.00013698,2]
[332797578,1721531444547,-657.63,0.00013698,2]
[332797579,1721531444557,-500.0,0.00013698,2]
[332797580,1721531444566,-500.0,0.00013698,2]
[332797581,1721531444575,-500.0,0.00013698,2]
[332797582,1721531444585,-548.9,0.00013698,2]
[332797583,1721531444595,-500.0,0.00013698,2]
[332797584,1721531444604,-500.0,0.00013698,2]
[332797585,1721531444613,-500.0,0.00013698,2]
[332797586,1721531444623,-500.0,0.00013698,2]
[332797587,1721531444632,-500.0,0.00013698,2]
[332797588,1721531444641,-500.0,0.00013698,2]
[332797589,1721531444651,-910.34,0.00013698,2]
[332797590,1721531444660,-500.0,0.00013698,2]
[332797591,1721531444670,-500.0,0.00013698,2]
[332797592,1721531444679,-500.0,0.00013698,2]
[332797593,1721531444689,-500.0,0.00013698,2]
[332797594,1721531444698,-500.0,0.00013698,2]
[332797595,1721531444709,-500.0,0.00013698,2]
[332797596,1721531444718,-500.0,0.00013698,2]
[332797597,1721531444727,-500.0,0.00013698,2]
[332797598,1721531444736,-500.0,0.00013698,2]
[332797599,1721531444745,-4153.2,0.00013698,2]
[332797600,1721531444755,-500.0,0.00013698,2]
[332797601,1721531444765,-991.26,0.00013698,2]
[332797602,1721531444775,-500.0,0.00013698,2]
[332797603,1721531444785,-500.0,0.00013698,2]
[332797604,1721531444795,-500.0,0.00013698,2]
[332797605,1721531444805,-672.79,0.00013698,2]
[332797606,1721531444815,-572.28,0.00013698,2]
[332797607,1721531444824,-500.0,0.00013698,2]
[332797608,1721531444834,-3122.49,0.00013698,2]
[332797609,1721531444843,-500.0,0.00013698,2]
[332797610,1721531444853,-780.96,0.00013698,2]
[332797611,1721531444862,-500.0,0.00013698,2]
[332797612,1721531444872,-500.0,0.00013698,2]
[332797613,1721531444882,-2000.0,0.00013698,2]
[332797614,1721531444891,-513.23170006,0.00013698,2]
[332797615,1721531444901,-500.0,0.00013698,2]
[332797616,1721531444913,-500.0,0.00013698,2]
[332797617,1721531444922,-558.09,0.00013698,2]
[332797618,1721531444932,-500.0,0.00013698,2]
[332797619,1721531444942,-646.26,0.00013698,2]
[332797620,1721531444951,-8031.53,0.00013698,2]
[332797621,1721531444963,-663.25,0.00013698,2]
[332797622,1721531444972,-500.0,0.00013698,2]
[332797623,1721531444981,-599.7,0.00013698,2]
[332797624,1721531444992,-500.0,0.00013698,2]
[332797625,1721531445002,-500.0,0.00013698,2]
[332797626,1721531445011,-500.0,0.00013698,2]
[332797627,1721531445021,-500.0,0.00013698,2]
[332797628,1721531445031,-503.64244037,0.00013698,2]
[332797629,1721531445040,-500.0,0.00013698,2]
[332797630,1721531445049,-2495.28,0.00013698,2]
[332797631,1721531445058,-508.74971259,0.00013698,2]
[332797632,1721531445067,-571.92256385,0.00013698,2]
[332797633,1721531445076,-501.5162643,0.00013698,2]
[332797634,1721531445085,-823.1,0.00013698,2]
[332797635,1721531445095,-764.43,0.00013698,2]
[332797636,1721531445104,-500.0,0.00013698,2]
[332797637,1721531445113,-1788.73,0.00013698,2]
[332797638,1721531445122,-500.0,0.00013698,2]
[332797639,1721531445132,-5060.08,0.00013698,2]
[332797640,1721531445142,-640.12,0.00013698,2]
[332797641,1721531445151,-2885.31,0.00013698,2]
[332797642,1721531445161,-501.89485632,0.00013698,2]
[332797643,1721531445170,-500.0,0.00013698,2]
[332797644,1721531445180,-457.76178401,0.00013698,2]
[332797645,1721531445189,-500.0,0.00013698,2]
[332797646,1721531445198,-648.19,0.00013698,2]
[332797647,1721531445207,-500.0,0.00013698,2]
[332797648,1721531445216,-500.0,0.00013698,2]
[332797649,1721531445226,-1468.73,0.00013698,2]
[332797650,1721531445235,-504.64998532,0.00013698,2]
[332797651,1721531445244,-500.0,0.00013698,2]
[332797652,1721531445253,-847.46,0.00013698,2]
[332797653,1721531445263,-506.96922315,0.00013698,2]
[332797654,1721531445272,-500.0,0.00013698,2]
[332797655,1721531445281,-500.42433486,0.00013698,2]
[332797656,1721531445290,-503.22469802,0.00013698,2]
[332797657,1721531445299,-480.92618224,0.00013698,2]
[332797658,1721531445309,-500.0,0.00013698,2]
[332797659,1721531445318,-985.85,0.00013698,2]
[332797660,1721531445326,-500.0,0.00013698,2]
[332797661,1721531445336,-2980.45,0.00013698,2]
[332797662,1721531445345,-500.0,0.00013698,2]
[332797663,1721531445355,-500.0,0.00013698,2]
[332797664,1721531445364,-500.0,0.00013698,2]
[332797665,1721531445374,-500.0,0.00013698,2]
[332797666,1721531445383,-500.0,0.00013698,2]
[332797667,1721531445392,-501.5293362,0.00013698,2]
[332797668,1721531445404,-500.0,0.00013698,2]
[332797669,1721531445415,-500.0,0.00013698,2]
[332797670,1721531445426,-500.0,0.00013698,2]
[332797671,1721531445436,-500.0,0.00013698,2]
[332797672,1721531445447,-500.0,0.00013698,2]
[332797673,1721531445458,-245.90148545,0.00013698,2]
[332797674,1721531445470,-500.0,0.00013698,2]
[332797675,1721531445481,-500.0,0.00013698,2]
[332797676,1721531445492,-500.0,0.00013698,2]
[332797677,1721531445504,-500.0,0.00013698,2]
[332797678,1721531445515,-500.0,0.00013698,2]
[332797679,1721531445526,-500.0,0.00013698,2]
[332797680,1721531445537,-500.0,0.00013698,2]
[332797681,1721531445548,-500.0,0.00013698,2]
[332797682,1721531445557,-500.0,0.00013698,2]
[332797683,1721531445568,-500.0,0.00013698,2]
[332797684,1721531445577,-500.0,0.00013698,2]
[332797685,1721531445587,-500.0,0.00013698,2]
[332797686,1721531445597,-500.0,0.00013698,2]
[332797687,1721531445606,-500.0,0.00013698,2]
[332797688,1721531445616,-641.5,0.00013698,2]
[332797689,1721531445626,-1969.99,0.00013698,2]
[332797690,1721531445638,-5252.85,0.00013698,2]
[332797691,1721531445651,-500.0,0.00013698,2]
[332797692,1721531445662,-1135.11,0.00013698,2]
[332797693,1721531445673,-500.0,0.00013698,2]
[332797694,1721531445683,-552.99,0.00013698,2]
[332797695,1721531445693,-509.6950994,0.00013698,2]
[332797696,1721531445705,-1257.69,0.00013698,2]
[332797697,1721531445715,-500.0,0.00013698,2]
[332797698,1721531445726,-3192.94,0.00013698,2]
[332797699,1721531445737,-500.0,0.00013698,2]
[332797700,1721531445892,-3509.05,0.00013698,2]
[332797701,1721531445910,-500.0,0.00013698,2]
[332797702,1721531445924,-500.0,0.00013698,2]
[332797703,1721531445934,-500.0,0.00013698,2]
[332797704,1721531445944,-500.0,0.00013698,2]
[332797705,1721531445954,-500.0,0.00013698,2]
[332797706,1721531445964,-11449.06,0.00013698,2]
[332797707,1721531445974,-7537.32,0.00013698,2]
[332797708,1721531445984,-833.85,0.00013698,2]
[332797709,1721531445994,-500.0,0.00013698,2]
[332797710,1721531446004,-1708.93,0.00013698,2]
[332797711,1721531446016,-500.0,0.00013698,2]
[332797712,1721531446026,-500.0,0.00013698,2]
[332797713,1721531446035,-4683.45,0.00013698,2]
[332797714,1721531446045,-500.0,0.00013698,2]
[332797715,1721531446054,-1403.62,0.00013698,2]
[332797716,1721531446064,-2606.52,0.00013698,2]
[332797717,1721531446074,-570.38,0.00013698,2]
[332797718,1721531446084,-500.0,0.00013698,2]
[332797719,1721531446093,-794.72,0.00013698,2]
[332797720,1721531446102,-957.75,0.00013698,2]
[332797721,1721531446112,-1056.28,0.00013698,2]
[332797722,1721531446121,-500.0,0.00013698,2]
[332797724,1721531446131,-500.0,0.00013698,2]
[332797726,1721531446141,-541.1,0.00013698,2]
[332797728,1721531446150,-500.0,0.00013698,2]
[332797730,1721531446160,-777.34,0.00013698,2]
[332797732,1721531446169,-500.0,0.00013698,2]
[332797734,1721531446179,-500.0,0.00013698,2]
[332797737,1721531446188,-2024.97,0.00013698,2]
[332797739,1721531446198,-500.0,0.00013698,2]
[332797740,1721531446207,-500.0,0.00013698,2]
[332797741,1721531446217,-500.0,0.00013698,2]
[332797742,1721531446226,-2691.93,0.00013698,2]
[332797743,1721531446235,-185.12499059,0.00013698,2]
[332797744,1721531446245,-1053.43,0.00013698,2]
[332797745,1721531446254,-500.0,0.00013698,2]
[332797746,1721531446263,-4979.59,0.00013698,2]
[332797747,1721531446273,-500.0,0.00013698,2]
[332797748,1721531446283,-628.51,0.00013698,2]
[332797749,1721531446292,-500.0,0.00013698,2]
[332797750,1721531446301,-500.0,0.00013698,2]
[332797751,1721531446311,-500.0,0.00013698,2]
[332797752,1721531446321,-1360.02,0.00013698,2]
[332797754,1721531446330,-500.0,0.00013698,2]
[332797756,1721531446340,-513.64982428,0.00013698,2]
[332797758,1721531446349,-500.0,0.00013698,2]
[332797760,1721531446359,-577.43,0.00013698,2]
[332797761,1721531446368,-500.0,0.00013698,2]
[332797763,1721531446378,-500.0,0.00013698,2]
[332797765,1721531446388,-3025.36,0.00013698,2]
[332797768,1721531446398,-2630.03,0.00013698,2]
[332797770,1721531446407,-500.0,0.00013698,2]
[332797771,1721531446417,-500.0,0.00013698,2]
[332797773,1721531446426,-501.43167891,0.00013698,2]
[332797775,1721531446435,-500.0,0.00013698,2]
[332797777,1721531446445,-337.32874335,0.00013698,2]
[332797856,1721531447251,-997.66701983,9.999e-05,2]
[332797858,1721531447261,-945.78125665,0.00013698,2]
[332797860,1721531447270,-500.0,0.00013698,2]
[332797862,1721531447279,-2283.76,0.00013698,2]
[332797864,1721531447289,-500.0,0.00013698,2]
[332797866,1721531447298,-529.77,0.00013698,2]
[332797868,1721531447307,-500.0,0.00013698,2]
[332797870,1721531447316,-1906.3,0.00013698,2]
[332797872,1721531447326,-2479.47,0.00013698,2]
[332797874,1721531447335,-500.0,0.00013698,2]
[332797876,1721531447344,-500.0,0.00013698,2]
[332797878,1721531447354,-500.0,0.00013698,2]
[332797880,1721531447363,-500.0,0.00013698,2]
[332797882,1721531447372,-1120.63,0.00013698,2]
[332797884,1721531447382,-1062.11,0.00013698,2]
[332797885,1721531447392,-500.0,0.00013698,2]
[332797886,1721531447402,-500.0,0.00013698,2]
[332797887,1721531447411,-500.0,0.00013698,2]
[332797888,1721531447421,-502.14615165,0.00013698,2]
[332797889,1721531447430,-500.00000001,0.00013698,2]
[332797890,1721531447439,-501.3188156,0.00013698,2]
[332797891,1721531447448,-500.0,0.00013698,2]
[332797892,1721531447458,-500.0,0.00013698,2]
[332797893,1721531447469,-12255.37,0.00013698,2]
[332797894,1721531447478,-500.0,0.00013698,2]
[332797895,1721531447490,-500.0,0.00013698,2]
[332797896,1721531447499,-677.83,0.00013698,2]
[332797897,1721531447508,-500.0,0.00013698,2]
[332797898,1721531447517,-500.0,0.00013698,2]
[332797899,1721531447526,-500.0,0.00013698,2]
[332797900,1721531447535,-500.0,0.00013698,2]
[332797901,1721531447544,-500.0,0.00013698,2]
[332797902,1721531447554,-500.0,0.00013698,2]
[332797903,1721531447563,-3127.24,0.00013698,2]
[332797904,1721531447572,-3127.24,0.00013698,2]
[332797905,1721531447582,-3127.24,0.00013698,2]
[332797906,1721531447591,-500.0,0.00013698,2]
[332797907,1721531447601,-3127.24,0.00013698,2]
[332797908,1721531447610,-3127.24,0.00013698,2]
[332797909,1721531447620,-1087.85,0.00013698,2]
[332797910,1721531447629,-3127.24,0.00013698,2]
[332797911,1721531447639,-3127.24,0.00013698,2]
[332797912,1721531447649,-506.44277005,0.00013698,2]
[332797913,1721531447659,-3127.24,0.00013698,2]
[332797914,1721531447668,-2167.15,0.00013698,2]
[332797915,1721531447680,-500.0,0.00013698,2]
[332797916,1721531447691,-3127.24,0.00013698,2]
[332797917,1721531447701,-502.17138118,0.00013698,2]
[332797918,1721531447712,-3127.24,0.00013698,2]
[332797919,1721531447723,-500.0,0.00013698,2]
[332797920,1721531447734,-3127.24,0.00013698,2]
[332797921,1721531447743,-3127.24,0.00013698,2]
[332797922,1721531447753,-3127.24,0.00013698,2]
[332797923,1721531447764,-3127.24,0.00013698,2]
[332797924,1721531447774,-715.37,0.00013698,2]
[332797925,1721531447784,-513.04389013,0.00013698,2]
[332797926,1721531447793,-1033.34,0.00013698,2]
[332797927,1721531447802,-500.0,0.00013698,2]
[332797928,1721531447811,-500.0,0.00013698,2]
[332797929,1721531447820,-901.02,0.00013698,2]
[332797931,1721531447831,-500.0,0.00013698,2]
[332797933,1721531447840,-4094.45,0.00013698,2]
[332797935,1721531447850,-8640.91,0.00013698,2]
[332797937,1721531447860,-500.0,0.00013698,2]
[332797939,1721531447871,-500.0,0.00013698,2]
[332797940,1721531447880,-500.0,0.00013698,2]
[332797942,1721531447890,-621.17,0.00013698,2]
[332797944,1721531447901,-1754.49,0.00013698,2]
[332797946,1721531447913,-500.0,0.00013698,2]
[332797948,1721531447924,-1189.51,0.00013698,2]
[332797950,1721531447934,-936.75,0.00013698,2]
[332797952,1721531447945,-1807.24,0.00013698,2]
[332797954,1721531447955,-500.0,0.00013698,2]
[332797956,1721531447965,-2312.84,0.00013698,2]
[332797958,1721531447975,-500.0,0.00013698,2]
[332797960,1721531447984,-500.0,0.00013698,2]
[332797962,1721531447995,-25135.58,0.00013698,2]
[332797964,1721531448005,-519.63091483,0.00013698,2]
[332797966,1721531448014,-500.0,0.00013698,2]
[332797968,1721531448023,-500.0,0.00013698,2]
[332797970,1721531448033,-342.38173091,0.00013698,2]
[332797972,1721531448042,-500.0,0.00013698,2]
[332797973,1721531448051,-500.0,0.00013698,2]
[332797974,1721531448061,-2331.2,0.00013698,2]
[332797975,1721531448072,-7203.23,0.00013698,2]
[332797976,1721531448082,-518.24520718,0.00013698,2]
[332797977,1721531448092,-500.0,0.00013698,2]
[332797978,1721531448102,-3000.0,0.00013699,2]
[332797979,1721531448112,-391.501239,0.00013699,2]
[332797980,1721531448121,-5304.19710114,0.00013812,2]
[332797981,1721531448131,-153.0,0.000139,2]
[332797982,1721531448141,-367.35615468,0.00013915,2]
[332797983,1721531448150,-212.095,0.00013958,2]
[332797984,1721531448205,-150.0,0.00013958,2]
[332797985,1721531448215,-150.657,0.00013958,2]
[332797986,1721531448225,-505.0,0.00013958,2]
[332797987,1721531448236,-1413.604,0.00013958,2]
[332797988,1721531448246,-428.60565432,0.00013961,2]
[332797989,1721531448257,-428.60565432,0.00013962,2]
[332797990,1721531448268,-2571.63392592,0.00013962,2]
[332797991,1721531448279,-3127.24,0.0001397,2]
[332797992,1721531448289,-500.0,0.00013971,2]
[332797993,1721531448300,-500.0,0.00013971,2]
[332797994,1721531448310,-500.0,0.00013971,2]
[332797995,1721531448320,-500.0,0.00013971,2]
[332797996,1721531448329,-500.0,0.00013971,2]
[332797997,1721531448339,-500.0,0.00013971,2]
[332797998,1721531448348,-624.728192,0.00013971,2]
[332797999,1721531448358,-500.0,0.00013971,2]
[332798000,1721531448368,-500.0,0.00013971,2]
[332798001,1721531448377,-500.0,0.00013971,2]
[332798002,1721531448386,-500.0,0.00013971,2]
[332798003,1721531448398,-500.0,0.00013971,2]
[332798004,1721531448408,-500.0,0.00013971,2]
[332798005,1721531448419,-500.0,0.00013971,2]
[332798006,1721531448429,-500.0,0.00013971,2]
[332798007,1721531448440,-500.0,0.00013971,2]
[332798008,1721531448449,-500.0,0.00013971,2]
[332798009,1721531448461,-549.25474034,0.00013971,2]
[332798010,1721531448471,-500.0,0.00013971,2]
[332798011,1721531448480,-500.0,0.00013971,2]
[332798012,1721531448490,-500.0,0.00013971,2]
[332798013,1721531448499,-500.0,0.00013971,2]
[332798014,1721531448509,-500.0,0.00013971,2]
[332798015,1721531448519,-3127.24,0.00013971,2]
[332798016,1721531448528,-3127.24,0.00013971,2]
[332798017,1721531448537,-3127.24,0.00013971,2]
[332798018,1721531448547,-3127.24,0.00013971,2]
[332798019,1721531448556,-3127.24,0.00013971,2]
[332798020,1721531448565,-3127.24,0.00013971,2]
[332798021,1721531448575,-3127.24,0.00013971,2]
[332798022,1721531448587,-3127.24,0.00013971,2]
[332798023,1721531448596,-3127.34092737,0.00013971,2]
[332798024,1721531448606,-29568.53027479,0.00013972,5]
[332798025,1721531448620,-208.93164233,0.00013972,2]
[332798026,1721531448629,-500.0,0.00013972,2]
[332798027,1721531448639,-500.0,0.00013972,2]
[332798028,1721531448648,-500.0,0.00013972,2]
[332798029,1721531448658,-2337.45,0.00013972,2]